Cogmind - Beta 14 @@@ ROGUE MODE // 2024.08.20 @ 11:26:42 Player: Compilatron Result: Destroyed by as-71738 with Assembled Rifle Performance ------------- Evolutions (0) 0 Regions Visited (4) 800 Robots Destroyed (4) 20 Value Destroyed (109) 109 Prototype IDs (23) 460 Alien Tech Used (0) 0 Bonus (395) 395 TOTAL SCORE: 1784 Bonus ------- Follower Combat Kills 95 Aligned with FarCom 300 Cogmind --------- Core Integrity 0/250 Matter 290/300 Energy 265/265 System Corruption 0% Temperature Cool (84) Movement Treading (160) Location -9/Mines Parts ------- > --- POWER (1) -------- Improved Ion Engine > --- PROPULSION (2) --- Light Treads Light Treads > --- UTILITY (2) ------ Large Storage Unit Hardened Light Armor Plating > --- WEAPON (2) ------- Beam Rifle > --- INVENTORY (15) --- Light Ion Engine Light Angular Momentum Engine Aluminum Leg Aluminum Leg Improved Aluminum Leg Improved Aluminum Leg Wheel Compact Wheel High-capacity Matter Pod (200) High-capacity Matter Pod (200) High-capacity Matter Pod (200) PSU Rigger Welding Torch Peak State ------------ > --- POWER ------------ Improved Ion Engine > --- PROPULSION ------- Light Treads Light Treads > --- UTILITY ---------- Large Storage Unit PSU Rigger > --- WEAPON ----------- Beam Rifle > --- INVENTORY -------- Light Ion Engine Light Angular Momentum Engine Aluminum Leg Aluminum Leg Improved Aluminum Leg Improved Aluminum Leg Wheel Compact Wheel High-capacity Matter Pod High-capacity Matter Pod High-capacity Matter Pod Hardened Light Armor Plating Welding Torch [Rating: 17] Favorites ----------- Power Light Ion Engine Engine Light Ion Engine Propulsion Light Treads Treads Light Treads Leg Aluminum Leg Wheel Wheel Utility Small Storage Unit Device Terrain Scanner Storage Small Storage Unit Protection Hardened Light Armor Plating Weapon Assault Rifle Energy Gun Beam Rifle Ballistic Gun Assault Rifle Special Weapon Welding Torch Build | -11 -10 -10 -10 -9 ------- Run | Yrd Mat Min Exi Min Slots Evolved . | . . . . . Power . | . . . . . Propulsion . | . . . . . Utility . | . . . . . Weapon . | . . . . . Parts Attached 21 | 2 3 2 4 10 Power 2 | . . 1 . 1 Engine 2 | . . 1 . 1 Core . | . . . . . Reactor . | . . . . . Propulsion 5 | 2 . . 1 2 Treads 4 | 2 . . . 2 Leg . | . . . . . Wheel 1 | . . . 1 . Hover . | . . . . . Flight . | . . . . . Utility 9 | . 1 . 3 5 Device 4 | . 1 . 1 2 Storage 2 | . . . 2 . Processor . | . . . . . Hackware . | . . . . . Protection 3 | . . . . 3 Artifact . | . . . . . Weapon 5 | . 2 1 . 2 Energy Gun 1 | . . . . 1 Energy Cannon . | . . . . . Ballistic Gun 3 | . 2 1 . . Ballistic Cannon . | . . . . . Launcher . | . . . . . Special Weapon 1 | . . . . 1 Impact Weapon . | . . . . . Slashing Weapon . | . . . . . Piercing Weapon . | . . . . . Special Melee Weapon . | . . . . . Unidentified Prototypes . | . . . . . Parts Lost 7 | . . 7 . . Power 1 | . . 1 . . Propulsion 2 | . . 2 . . Utility 1 | . . 1 . . Weapon 3 | . . 3 . . Highest Loss Streak 7 | . . 7 . . To Critical Strikes . | . . . . . Average Slot Usage (%) 78 | . 99 79 40 74 Engine 13 | . 14 12 14 14 Treads 20 | . 28 20 . 21 Wheel 2 | . . . 6 3 Device 7 | . 13 10 . . Storage 14 | . 14 14 19 14 Protection 2 | . . . . 9 Energy Gun 5 | . 7 . . 10 Ballistic Gun 11 | . 20 21 . . Peak Build Rating 17 | 6 7 7 11 17 Average Rating 6 | 6 6 5 3 9 On Entrance 5 | 6 6 7 2 4 Naked Turns . | . . . . . Heaviest Build 35 | 11 13 13 23 35 Greatest Support 40 | 40 40 40 10 40 Greatest Overweight (x) 2 | . . 2 2 2 Average Overweight (x) . | . . . 1 . Largest Inventory Capacity 15 | 8 8 8 15 15 Average Capacity 10 | 8 8 8 8 15 Most Carried 13 | 6 8 8 8 13 Average Carried 8 | 5 7 7 7 11 Final Capacity 15 | 8 8 8 15 15 Final Carried 13 | 5 8 8 8 13 Class Distribution -------------------- 77% | Mutant 22% | Scavenger-Mutant Dominant Class ---------------- Mutant | -10/Materials Mutant | -10/Mines Mutant | -10/Exiles Scavenger-Mutant | -9/Mines Resources | -11 -10 -10 -10 -9 ----------- Run | Yrd Mat Min Exi Min Matter Collected 1106 | 200 115 446 . 345 Remotely . | . . . . . Salvage Created 145 | . 115 30 . . Parts 9 | . 7 2 . . Haulers Intercepted . | . . . . . Recyclers Shooed . | . . . . . Parts Field Recycled . | . . . . . Retrieved Matter . | . . . . . Parts Self-Destructed . | . . . . . Prevented . | . . . . . Kills | -11 -10 -10 -10 -9 ------- Run | Yrd Mat Min Exi Min Combat Hostiles Destroyed 3 | . 3 . . . Guns 3 | . 3 . . . Classes Destroyed 2 | . 1 1 . . Tunneler 1 | . . 1 . . Grunt 3 | . 3 . . . Best Kill Streak 2 | . 2 1 . . Combat Bots Only 2 | . 2 . . . Max Kills in Single Turn 1 | . 1 1 . . Gunslinging . | . . . . . Exploded . | . . . . . Melee . | . . . . . Uniques/NPCs Destroyed . | . . . . . Combat | -11 -10 -10 -10 -9 -------- Run | Yrd Mat Min Exi Min Hostile Shots Fired 54 | . 27 13 . 14 Missed 8 | . 3 . . 5 Damage Taken 1022 | . 257 663 . 102 Core 252 | . 33 188 . 31 Absorbed by Shields . | . . . . . Core Remaining (%) 100 | 100 . . . . Volleys Fired 33 | . 19 11 . 3 Largest 2 | . 2 2 . 1 Hottest 60 | . 60 40 . 56 Shots Fired 59 | . 37 19 . 3 Gun 59 | . 37 19 . 3 Cannon . | . . . . . Launcher . | . . . . . Special . | . . . . . Kinetic 42 | . 23 19 . . Thermal 17 | . 14 . . 3 Explosive . | . . . . . Electromagnetic . | . . . . . Robot Hit Streak 14 | . 14 9 . 2 Robot Miss Streak 6 | . 6 2 . 2 Penetration Max . | . . . . . Secondary Targets 1 | . 1 . . . Max Gunslinging Chain 1 | . 1 . . . Shots Hit Robots 37 | . 22 13 . 2 Core Hits 11 | . 7 3 . 1 Critical Kills . | . . . . . Critical Parts Destroyed . | . . . . . Critical Strikes 1 | . . . . 1 Burn 1 | . . . . 1 Melee Attacks . | . . . . . Impact . | . . . . . Slashing . | . . . . . Piercing . | . . . . . Sneak Attacks . | . . . . . Combat Hostiles . | . . . . . Follow-up Attacks . | . . . . . Damage Inflicted 466 | . 266 171 . 29 Guns 466 | . 266 171 . 29 Cannons . | . . . . . Explosions . | . . . . . Melee . | . . . . . Ramming . | . . . . . Kinetic 322 | . 151 171 . . Thermal 144 | . 115 . . 29 Explosive . | . . . . . Electromagnetic . | . . . . . Impact . | . . . . . Slashing . | . . . . . Piercing . | . . . . . Highest Corruption . | . . . . . Average Corruption . | . . . . . Corruption Purged . | . . . . . Corruption Blocked . | . . . . . Overload Shots . | . . . . . Overflow Damage . | . . . . . Projectiles . | . . . . . Explosions . | . . . . . Melee . | . . . . . Knockbacks . | . . . . . Impact . | . . . . . Kinetic . | . . . . . Secondary . | . . . . . Self-Inflicted Damage . | . . . . . Shots . | . . . . . Rammed . | . . . . . Targets Rammed . | . . . . . Kicked . | . . . . . Crushed . | . . . . . Highest Temperature 96 | . 96 . . 84 Average Temperature 45 | . 44 . . 49 Received Heat Transfer 186 | . 144 . . 42 Siege Activations . | . . . . . Robots Corrupted . | . . . . . Combat Hostiles . | . . . . . Parts Fried . | . . . . . Impact Corruptions . | . . . . . Robots Melted . | . . . . . Combat Hostiles . | . . . . . Parts Melted 1 | . 1 . . . Heat Transferred 423 | . 275 . . 148 Parts Sabotaged . | . . . . . Parts Stolen . | . . . . . Parts Stripped . | . . . . . Power Chain Reactions . | . . . . . Alert | -11 -10 -10 -10 -9 ------- Run | Yrd Mat Min Exi Min Peak Influence 91 | . 91 91 . 60 Initial 33 | . . 33 . . Average 37 | . 38 45 . 30 Maximum Alert Level . | . . . . . Low Security (%) 100 | 100 100 100 . 100 Level 1 . | . . . . . Level 2 . | . . . . . Level 3 . | . . . . . Level 4 . | . . . . . Level 5 . | . . . . . High Security . | . . . . . Max Security . | . . . . . Squads Dispatched 1 | . 1 . . . Investigation . | . . . . . Extermination . | . . . . . Reinforcement 1 | . 1 . . . Assault . | . . . . . Garrison . | . . . . . Intercept . | . . . . . Searches Triggered . | . . . . . Construction Impeded . | . . . . . Haulers Reinforced . | . . . . . Active Scanning Responses . | . . . . . Cargo Convoy Interrupts . | . . . . . Stealth | -11 -10 -10 -10 -9 --------- Run | Yrd Mat Min Exi Min Distress Signals 2 | . 2 . . . Communications Jammed . | . . . . . Distress Signals . | . . . . . Times Spotted 24 | . 10 4 . 10 Peak Tracking Total 5 | . 3 2 . 5 Tactical Retreats 3 | . 1 . . 2 Traps | -11 -10 -10 -10 -9 ------- Run | Yrd Mat Min Exi Min Traps Triggered . | . . . . . Indirectly . | . . . . . Trap Hack Attempts . | . . . . . Triggered . | . . . . . Disarmed . | . . . . . Reprogrammed . | . . . . . Reused . | . . . . . Traps Extracted . | . . . . . Installed . | . . . . . Triggered . | . . . . . Objects Rigged 3 | . . . 1 2 Exploded 1 | . . . . 1 Machines | -11 -10 -10 -10 -9 ---------- Run | Yrd Mat Min Exi Min Machines Disabled . | . . . . . Max in Single Turn . | . . . . . Machines Repaired . | . . . . . Machines Dismantled . | . . . . . Machines Sabotaged . | . . . . . Overloaded Fab Kills . | . . . . . Hacking | -11 -10 -10 -10 -9 --------- Run | Yrd Mat Min Exi Min Machines Accessed 8 | . 6 . 2 . Terminals 5 | . 5 . . . Fabricators . | . . . . . Repair Stations . | . . . . . Recycling Units 1 | . 1 . . . Scanalyzers . | . . . . . Garrison Access . | . . . . . Total Hacks 23 | . 20 . 3 . Successful 14 | . 11 . 3 . Failed 9 | . 9 . . . Catastrophic 1 | . 1 . . . Database Lockouts . | . . . . . Manual 17 | . 16 . 1 . Terminals 19 | . 19 . . . Fabricators . | . . . . . Repair Stations . | . . . . . Recycling Units 1 | . 1 . . . Scanalyzers . | . . . . . Garrison Access . | . . . . . Terminal Hacks 6 | . 3 . 3 . Record 2 | . . . 2 . Robot Analysis 1 | . 1 . . . Terminal Index 1 | . 1 . . . Hauler Manifests 1 | . 1 . . . Derelict Proto ID Bank 1 | . . . 1 . Fabricator Hacks . | . . . . . Repair Station Hacks . | . . . . . Recycling Unit Hacks . | . . . . . Scanalyzer . | . . . . . Garrison Access Hacks . | . . . . . Unauthorized Hacks 8 | . 8 . . . Terminals 7 | . 7 . . . Track 2 | . 2 . . . Assimilate 1 | . 1 . . . Botnet 3 | . 3 . . . Operators 1 | . 1 . . . Fabricators . | . . . . . Repair Stations . | . . . . . Recycling Units 1 | . 1 . . . Reject 1 | . 1 . . . Scanalyzers . | . . . . . Garrison Access . | . . . . . Data Cores Recovered . | . . . . . Used . | . . . . . Hacking Detections 4 | . 4 . . . Full Trace Events . | . . . . . Feedback Events . | . . . . . Feedback Blocked . | . . . . . Robot Schematics Acquired . | . . . . . Robots Built . | . . . . . Authchips . | . . . . . Time . | . . . . . Total Robot Build Rating . | . . . . . Part Schematics Acquired . | . . . . . Parts Built . | . . . . . Authchips . | . . . . . Time . | . . . . . Total Part Build Rating . | . . . . . Parts Repaired . | . . . . . Time . | . . . . . Parts Recycled . | . . . . . Recycled Matter . | . . . . . Retrieved Matter . | . . . . . Retrieved Components . | . . . . . Parts Scanalyzed . | . . . . . Part Schematics Acquired . | . . . . . Parts Damaged . | . . . . . Bothacking | -11 -10 -10 -10 -9 ------------ Run | Yrd Mat Min Exi Min Used RIF Installer . | . . . . . Robots Hacked . | . . . . . Non-combat . | . . . . . Combat . | . . . . . Robot Hacks Applied . | . . . . . Relay Couplers Released . | . . . . . Fabnet Peak Effective % . | . . . . . Robots Rewired . | . . . . . Allies Hacked . | . . . . . Hacks Repelled . | . . . . . Allies | -11 -10 -10 -10 -9 -------- Run | Yrd Mat Min Exi Min Total Allies 5 | . 1 1 . 3 Largest Group 3 | . 1 2 . 3 Highest-Rated Group 41 | . 10 41 . 40 Highest-Rated Ally 31 | . 10 31 . 16 Total Orders . | . . . . . Ally Attacks 26 | . . 9 . 17 Total Damage 268 | . . 85 . 183 Kills 3 | . . 2 . 1 Allies Corrupted . | . . . . . Allies Melted . | . . . . . Intel | -11 -10 -10 -10 -9 ------- Run | Yrd Mat Min Exi Min Robot Analysis Total 1 | . 1 . . . Derelict Logs Recovered 3 | . . 2 . 1 Drone Launches . | . . . . . Drone Recoveries . | . . . . . Exploration | -11 -10 -10 -10 -9 ------------- Run | Yrd Mat Min Exi Min Turns Passed 2052 | 4 759 345 367 577 Spaces Moved 1244 | 1 423 204 298 318 Core 192 | . . 64 128 . Treads 777 | 1 423 140 . 213 Legs . | . . . . . Wheels 275 | . . . 170 105 Hover . | . . . . . Flight . | . . . . . Fastest Speed 95 | 160 160 100 95 110 Average Speed 144 | 160 160 149 119 143 Slowest Speed 240 | 160 160 160 150 240 Overloaded Moves . | . . . . . Propulsion Burnouts . | . . . . . Robots Hopped . | . . . . . Cave-ins Triggered . | . . . . . Exploration Rate (%) 45 | 2 61 41 63 61 Regions Visited 4 Branch Regions 3 Pre-discovered Areas 2 | . . 1 . 1 Known Exits Taken . | . . . . . Unknown Exits Taken 4 | 1 1 1 1 . Scrap Searched 1 | . . . . 1 Spaces Dug . | . . . . . Terrain Destroyed . | . . . . . Melee . | . . . . . Projectile . | . . . . . AOE . | . . . . . Terrain Rammed . | . . . . . Walls Destroyed . | . . . . . Machines Disabled . | . . . . . Actions | -11 -10 -10 -10 -9 --------- Run | Yrd Mat Min Exi Min Total 1439 | 3 469 225 309 433 Wait 111 | . 18 8 . 85 Move 1240 | . 422 203 297 318 Hop . | . . . . . Pick Up 20 | . 5 1 3 11 Fast Attach 1 | . . 1 . . Attach 9 | . 1 1 3 4 Detach 3 | . . . 2 1 Swap 11 | 2 2 . 1 6 Drop 8 | 1 2 . 2 3 Fire 33 | . 19 11 . 3 Melee . | . . . . . Ram . | . . . . . Kick . | . . . . . Crush . | . . . . . Escape Stasis . | . . . . . Rewire . | . . . . . Trap 3 | . . . 1 2 Miscellaneous . | . . . . . Route ------- -11/Scrapyard -10/Materials (discovered 2 exits: [*Mat] / [*Min]) -10/Mines (discovered 3 exits: [*Mat x2] / *Exi) -10/Exiles -9/Mines History --------- Turn | Location | Event 5 | -11/Scrapyard | Discovered new exit (range 0) 5 | -11/Scrapyard | Entered Materials 306 | -10/Materials | Build established: Mutant 321 | -10/Materials | Discovered new exit (range 9) 435 | -10/Materials | Discovered new exit (range 7) 764 | -10/Materials | Entered Mines 764 | -10/Mines | Accompanied by 1 ally 860 | -10/Mines | Discovered new exit (range 12) 863 | -10/Mines | Learned Materials emergency access door positions 868 | -10/Mines | Received a Mining Laser from a helpful Derelict 874 | -10/Mines | Discovered new exit (range 11) 895 | -10/Mines | Learned location of Recycling (-7) 968 | -10/Mines | Assembled infested the area 1007 | -10/Mines | Met 8R-AWN 1029 | -10/Mines | Core integrity fell below 50% 1031 | -10/Mines | Core integrity fell below 20% 1057 | -10/Mines | Lost 7 parts (1p2n1u3w) 1103 | -10/Mines | Discovered new exit (range 5) 1109 | -10/Mines | Entered Exiles 1145 | -10/Exiles | Welcomed by 8R-AWN 1174 | -10/Exiles | Met EX-HEX 1222 | -10/Exiles | Met EX-BIN 1249 | -10/Exiles | Aligned with FarCom system 1250 | -10/Exiles | Given EX-Vault access code 1289 | -10/Exiles | Opened EX-Vault 1303 | -10/Exiles | Found PSU Rigger 1324 | -10/Exiles | Warned to stay clear of 0b10 Research branches 1354 | -10/Exiles | Met EX-DEC 1464 | -10/Exiles | Discovered new exit (range 14) 1476 | -10/Exiles | Left Exiles lab with PSU Rigger 1476 | -10/Exiles | Entered Mines 1540 | -9/Mines | Assisted by bots powering up and referring to "LRC-V3" 1591 | -9/Mines | Joined a pair of Derelicts in attacking an 0b10 outpost 1593 | -9/Mines | Lost 3 allies 1898 | -9/Mines | Build established: Scavenger-Mutant 1949 | -9/Mines | Excavation squad dispatched 1949 | -9/Mines | A large section of the Mines collapsed 2053 | -9/Mines | Destroyed by as-71738 with Assembled Rifle Last Messages --------------- 01651_ Acquired Lgt. Angular Momentum Engine. 01652_ Dropped Lgt. Angular Momentum Engine. 01654_ Rigged Lgt. Angular Momentum Engine with PSU Rigger. 01655_ Acquired Rigged Lgt. Angular Momentum Engine. 01656_ Acquired 51 matter. 01660_ Acquired 50 matter. 01663_ Acquired Imp. Aluminum Leg. 01716_ Acquired 20 matter. 01802_ K-01 Serf collects debris. 01936_ T-07 Excavator is excavating. 01949_ ALERT: Suspicious cave-in, suspected derelict activity in mines. Dispatching escorted excavation squad. 01974_ T-07 Excavator is excavating. 02044_ T-07 Excavator suffers critical hit (Destroy). 02046_ T-07 Excavator destroyed. 02049_ as-71738 suffers critical hit (Burn). Map ----- +----------------------------------------------------+ | | | | | | | | | | | | | | | | | | | ??????????????????????????????????? | | ??????????????????????????????????? | | ??????######??????????????????????? | | ?????## ##????????????????????? | | ?????# #???????????????????? | | ?????# ##?????????????????? | | ??????? #?????????#####???? | | ?????????# #??######## ##### | | ???????????# #??# | | ????????????# #### ####### | | ?????????????# #?????# ### | | ?????????????# #####?????# #?? | | ?????###?????# #?????????## ##?? | | ????## ####?#### #??????????####??? | | ????# ### ;# #????????????????? | | ????# *a=# ##????????????????? | | ????# ;@;!# ##?????????????????? | | ????## ;######??????????????????? | | ?????######???????????????????????? | | ??????????????????????????????????? | | ??????????????????????????????????? | | ??????????????????????????????????? | | ??????????????????????????????????? | | ??????????????????????????????????? | | ??????????????????????????????????? | | ??????????????????????????????????? | | ???????????????????????????????? ## | | ????????????????????????????? | | ????????????????????????????? | | ????????????????????????????? | | ?????????????????????????????? ? | | ??????????????????????????????????? | | ??????????????????????????????????? | | ??????????????????????????????????? | | ??????????????????????????????????? | | ??????????????????????????????????? | | ??????????????????????????????????? | | ??????????????????????????????????? | | ??????????????????????????????????? | | ??????????????????????????????????? | | ??????????????????????????????????? | +----------------------------------------------------+ Best States ------------- Heat Dissipation 25 Energy Generation 12 Energy Capacity 265 Matter Stores 480 Matter Capacity 500 Sight Range 16 Terrain Scan Range 14 Terrain Scan Density 10 Armor Coverage 150 Evasion (%) 41 Recoil Reduction 2 Item Schematics ----------------- None Robot Schematics ------------------ None Fabricated ------------ Nothing Alien Tech Used ----------------- None Achievements -------------- None Challenges ------------ None Game ------ Seed ArcCoolingWand Manual? 0 Play Time 00:17:54 Cumulative 48.8 hours Start 2024.08.20 @ 11:12:42 End 2024.08.20 @ 11:26:42 Sessions 1 Manual Loads 0 Difficulty Rogue Special Mode None Game No. 67 Rogue 45 Adventurer 20 Explorer 2 Win Type - Total 0 Types 0/0/0/0/0/0/0/0/0 Lore% 38 Gallery% 36 Achievement% 37 Wizard Run 0 Options --------- Layout 1 ASCII 0 Keyboard 0 Movement Numpad Keybinds 0 Fullscreen 2 Font 24/Smallcaps Map View 50x35 Zoom Use 0% Tactical HUD 1 Map Filters NONE Filters NONE Steam 1 RUN: 6b6ccd5c-3cdd-4a3b-89ae-ffdb3b8e1da4